bitfinex-derivatives/quotes_BTCF0:USTF0_20250324
["timestamp","ask_amount","ask_price","bid_price","bid_amount"]
[1742785112684,0.42060629,85952.0,85951.0,0.04586538]
[1742785113597,0.46500629,85952.0,85951.0,0.04586538]
[1742785114098,0.46600629,85952.0,85951.0,0.04586538]
[1742785117201,0.42410629,85952.0,85951.0,0.40666538]
[1742785117403,0.42410629,85952.0,85951.0,0.40726538]
[1742785118503,0.42410629,85952.0,85951.0,0.04646538]
[1742785118703,0.42410629,85952.0,85951.0,0.04586538]
[1742785122705,0.23664629,85952.0,85951.0,0.04586538]
[1742785122897,0.35084629,85952.0,85951.0,0.04586538]
[1742785123495,0.42374629,85952.0,85951.0,0.04586538]
[1742785125009,0.1163443,85950.0,85949.0,0.003755]
[1742785125206,0.1163457,85949.0,85948.0,0.00017446]
[1742785125408,0.1892457,85949.0,85948.0,0.00017446]
[1742785125605,0.1901657,85949.0,85948.0,0.00017446]
[1742785125803,0.30559038,85949.0,85948.0,0.00017446]
[1742785126807,0.30759038,85949.0,85948.0,0.00017446]
[1742785128107,0.42411038,85949.0,85948.0,0.00017446]
[1742785130712,0.83313038,85949.0,85948.0,0.00017446]
[1742785132818,1.19393038,85949.0,85948.0,0.00017446]
[1742785136010,1.19393038,85949.0,85948.0,6e-08]
[1742785138819,1.19393038,85949.0,85948.0,0.0147326]
[1742785140416,1.19393038,85949.0,85948.0,6e-08]
[1742785141622,1.19393038,85949.0,85948.0,0.01479147]
[1742785146814,1.19393038,85949.0,85948.0,6e-08]
[1742785162435,1.00651038,85949.0,85948.0,6e-08]
[1742785162736,1.12023038,85949.0,85948.0,6e-08]
[1742785163228,0.71213038,85949.0,85948.0,6e-08]
[1742785163426,0.71225038,85949.0,85948.0,6e-08]
[1742785171545,0.80685038,85949.0,85948.0,6e-08]
[1742785174151,0.71225038,85949.0,85948.0,6e-08]
[1742785174939,0.81115038,85949.0,85948.0,6e-08]
[1742785179647,0.76055038,85949.0,85948.0,6e-08]
[1742785180246,0.71225038,85949.0,85948.0,6e-08]
[1742785184048,0.59841038,85949.0,85948.0,6e-08]
[1742785184249,0.71161038,85949.0,85948.0,6e-08]
[1742785185649,0.75891038,85949.0,85948.0,6e-08]
[1742785189458,0.39811038,85949.0,85948.0,6e-08]
[1742785198472,0.80621038,85949.0,85948.0,6e-08]
[1742785198873,0.92043735,85949.0,85948.0,6e-08]
[1742785200075,0.1163633,85936.0,85921.0,0.3608]
[1742785200271,0.1163633,85936.0,85932.0,0.0484]
[1742785200272,0.5912833,85936.0,85932.0,0.0484]
[1742785200671,0.70764964,85936.0,85932.0,0.0484]
[1742785200872,0.75544964,85936.0,85932.0,0.0484]
[1742785201576,0.75744964,85936.0,85932.0,0.0484]
[1742785202871,0.39664964,85936.0,85932.0,0.0484]
[1742785203082,0.34671331,85936.0,85935.0,0.11683007]
[1742785203280,0.46307661,85936.0,85935.0,0.00138547]
[1742785203478,0.16151027,85936.0,85935.0,0.00238547]
[1742785203679,0.27535027,85936.0,85935.0,0.01718263]
[1742785204081,0.39171661,85936.0,85935.0,0.01718263]
[1742785205492,0.35156964,85936.0,85935.0,0.01718263]
[1742785207589,0.23836964,85936.0,85935.0,0.01718263]
[1742785207790,0.35160964,85936.0,85935.0,0.01718263]
[1742785208085,0.1220033,85936.0,85935.0,0.13354723]
[1742785208385,0.116442,85937.0,85936.0,0.1163633]
[1742785208591,0.117122,85937.0,85936.0,0.1650633]
[1742785208782,0.117122,85937.0,85936.0,0.17986046]
[1742785209583,0.122122,85937.0,85936.0,0.17986046]
[1742785210490,0.122122,85937.0,85936.0,0.1650633]
[1742785210695,0.00876,85937.0,85936.0,0.1650633]
[1742785210892,0.11324,85941.0,85936.0,0.1650633]
[1742785210893,0.00017446,85944.0,85943.0,0.1163538]
[1742785211192,0.00113447,85944.0,85943.0,0.48973325]
[1742785211397,0.1244864,85957.0,85952.0,0.1163416]
[1742785211691,0.36014651,85953.0,85952.0,0.4771416]
[1742785211889,0.36014651,85953.0,85952.0,0.4781016]
[1742785212083,0.36014651,85953.0,85952.0,0.36176]
[1742785212284,0.36014651,85953.0,85952.0,0.50506]
[1742785212585,0.41144651,85953.0,85952.0,0.14426]
[1742785212890,0.16824031,85953.0,85952.0,0.14426]
[1742785214199,0.16924031,85953.0,85952.0,0.14426]
[1742785214898,0.16924031,85953.0,85952.0,0.2606016]
[1742785215084,0.16924031,85953.0,85952.0,0.14426]
[1742785216299,0.16924031,85953.0,85952.0,0.2606016]
[1742785216488,0.16924031,85953.0,85952.0,0.14426]
[1742785216889,0.16924031,85953.0,85952.0,0.2606016]
[1742785217093,0.00160001,85953.0,85952.0,0.2606016]
[1742785217588,0.00160001,85953.0,85952.0,0.6214016]
[1742785219495,0.11794031,85953.0,85952.0,0.6214016]
[1742785220094,0.11794031,85953.0,85952.0,0.50506]
[1742785221800,0.16534031,85953.0,85952.0,0.50506]
[1742785229607,0.16534031,85953.0,85952.0,0.6214016]
[1742785229910,0.16534031,85953.0,85952.0,0.50506]
[1742785234209,0.16534031,85953.0,85952.0,0.45666]
[1742785234412,0.1163525,85944.0,85943.0,0.3608]
[1742785234617,0.11695251,85944.0,85943.0,0.4778738]
[1742785234808,0.11695251,85944.0,85943.0,0.36152]
[1742785235008,0.11695251,85944.0,85943.0,0.4778738]
[1742785235707,0.11695251,85944.0,85943.0,0.1170738]
[1742785235912,0.05270001,85944.0,85943.0,0.1170738]
[1742785236108,0.16905251,85944.0,85943.0,0.2286738]
[1742785236906,0.17005251,85944.0,85943.0,0.2286738]
[1742785237214,0.22275251,85944.0,85943.0,0.2286738]
[1742785240613,0.22275251,85944.0,85943.0,0.11232]
[1742785240813,0.22275251,85944.0,85943.0,0.00072]
[1742785241018,0.33910802,85944.0,85943.0,0.00072]
[1742785243814,0.33910802,85944.0,85943.0,0.05272]
[1742785246725,0.45230802,85944.0,85943.0,0.05272]
[1742785248929,0.50470802,85944.0,85943.0,0.05272]
[1742785252224,0.50470802,85944.0,85943.0,0.00072]
[1742785252625,0.50470802,85944.0,85928.0,0.1163738]
[1742785252626,0.1163633,85936.0,85928.0,0.1163738]
[1742785252825,0.1163633,85936.0,85930.0,0.0548]
[1742785252826,0.59096331,85936.0,85930.0,0.0548]
[1742785253233,0.70731882,85936.0,85930.0,0.0548]
[1742785253432,0.70731882,85936.0,85927.0,0.00017446]
[1742785253433,0.1163741,85928.0,85927.0,0.00017446]
[1742785253634,0.23017411,85928.0,85927.0,0.00089446]
[1742785254936,0.28397411,85928.0,85927.0,0.00089446]
[1742785255138,0.29552489,85928.0,85927.0,0.00289446]
[1742785255526,0.41190206,85928.0,85927.0,0.00289446]
[1742785255726,0.41190206,85928.0,85927.0,0.00217446]
[1742785256336,0.41190206,85928.0,85927.0,0.00281446]
[1742785256743,0.41190206,85928.0,85927.0,0.00481446]
[1742785257236,0.41190206,85928.0,85927.0,0.05631446]
[1742785257437,0.41190206,85928.0,85927.0,0.05431446]
[1742785257627,0.41290206,85928.0,85927.0,0.05367446]
[1742785257827,0.41290206,85928.0,85927.0,0.05431446]
[1742785257828,0.28815128,85928.0,85927.0,0.05431446]
[1742785258030,0.11797411,85928.0,85927.0,0.17068996]
[1742785258440,0.17187411,85928.0,85927.0,0.22258996]
[1742785259435,0.17187411,85928.0,85927.0,0.10621446]
[1742785259844,0.22927411,85928.0,85927.0,0.10621446]
[1742785260228,0.22927411,85928.0,85927.0,0.22258996]
[1742785260446,0.22927411,85928.0,85927.0,0.10621446]
[1742785265350,0.17187411,85928.0,85927.0,0.22258996]
[1742785265542,0.17187411,85928.0,85927.0,0.10621446]
[1742785265938,0.22537411,85928.0,85927.0,0.10621446]
[1742785271945,0.39957362,85928.0,85927.0,0.10621446]
[1742785274154,0.39957362,85928.0,85927.0,0.05271446]
[1742785274341,0.39957362,85928.0,85927.0,0.05207446]
[1742785275658,0.22537411,85928.0,85927.0,0.05207446]
[1742785278650,0.22537411,85928.0,85927.0,0.41287446]
[1742785278862,0.22537411,85928.0,85927.0,0.41351446]
[1742785279053,0.39957362,85928.0,85927.0,0.41351446]
[1742785281762,0.22537411,85928.0,85927.0,0.41351446]
[1742785282463,0.33857411,85928.0,85927.0,0.41351446]
[1742785283166,0.33857411,85928.0,85927.0,0.05271446]
[1742785283467,0.33857411,85928.0,85927.0,0.41287446]
[1742785283660,0.33857411,85928.0,85927.0,0.41351446]
[1742785284066,0.54761352,85928.0,85927.0,0.41351446]
[1742785287967,0.33857411,85928.0,85927.0,0.41351446]
[1742785292873,0.33857411,85928.0,85927.0,0.05271446]
[1742785293082,0.33857411,85928.0,85927.0,0.41351446]
[1742785293773,0.22537411,85928.0,85927.0,0.41351446]
[1742785293978,0.33853411,85928.0,85927.0,0.41351446]
[1742785304777,0.44293663,85928.0,85927.0,0.41351446]
[1742785308374,0.33853411,85928.0,85927.0,0.41351446]
[1742785316273,0.44692116,85928.0,85927.0,0.41351446]
[1742785320382,0.33853411,85928.0,85927.0,0.41351446]
[1742785323596,0.05550001,85928.0,85927.0,0.41351446]
[1742785323888,0.30205829,85936.0,85935.0,0.1163646]
[1742785323889,0.24387619,85936.0,85935.0,0.1163646]
[1742785324096,0.2444762,85936.0,85935.0,0.4780046]
[1742785324394,0.3608395,85936.0,85935.0,0.4780046]
[1742785324790,0.3608395,85936.0,85935.0,0.5917046]
[1742785325099,0.3618395,85936.0,85935.0,0.5917046]
[1742785325295,0.2454762,85936.0,85935.0,0.5917046]
[1742785325601,0.3618395,85936.0,85935.0,0.5917046]
[1742785328086,0.2454762,85936.0,85935.0,0.5917046]
[1742785328892,0.00177458,85936.0,85935.0,0.5917046]
[1742785329094,0.11813788,85936.0,85935.0,0.5917046]
[1742785329895,0.11813788,85936.0,85935.0,0.9525046]
[1742785330084,0.00177458,85936.0,85935.0,0.9525046]
[1742785330982,0.00177458,85936.0,85935.0,1.0425046]
[1742785331383,0.00117457,85936.0,85935.0,1.0425046]
[1742785332291,0.00201457,85936.0,85935.0,1.0425046]
[1742785333196,0.00117457,85936.0,85935.0,1.0425046]
[1742785333398,0.00201457,85936.0,85935.0,1.0425046]
[1742785333787,0.05637457,85936.0,85935.0,1.0425046]
[1742785334092,0.05729457,85936.0,85935.0,1.0425046]
[1742785334994,0.05729457,85936.0,85935.0,0.9525046]
[1742785335194,0.05637457,85936.0,85935.0,0.9525046]
[1742785335395,0.11425457,85936.0,85935.0,0.9525046]
[1742785335596,0.11357457,85936.0,85935.0,0.9525046]
[1742785338392,0.05637457,85936.0,85935.0,0.9525046]
[1742785339091,0.11041457,85936.0,85935.0,0.9525046]
[1742785339399,0.10957457,85936.0,85935.0,0.9525046]
[1742785346200,0.11045458,85936.0,85935.0,0.5917046]
[1742785346404,0.11045458,85936.0,85935.0,0.9525046]
[1742785347494,0.88376,85959.0,85935.0,1.03614]
[1742785347703,0.0004,85960.0,85946.0,0.4771498]
[1742785347704,0.17550282,85947.0,85946.0,0.4771498]
[1742785347905,0.0004,85960.0,85954.0,0.1163389]
[1742785348099,0.21065138,85955.0,85954.0,0.7016989]
[1742785348296,0.0004,85960.0,85959.0,0.1163322]
[1742785348496,0.0004,85960.0,85959.0,0.60008774]
[1742785349001,0.0004,85960.0,85959.0,0.71048774]
[1742785349810,0.0004,85960.0,85959.0,0.719151]
[1742785350606,0.34988892,85970.0,85966.0,0.0581611]
[1742785350797,0.35048893,85970.0,85969.0,0.4771186]
[1742785350996,0.35048893,85970.0,85969.0,0.5886386]
[1742785351705,0.00234375,85970.0,85969.0,0.5886386]
[1742785352009,0.00234375,85970.0,85969.0,0.4786386]
[1742785352711,0.17436105,85970.0,85969.0,0.4786386]
[1742785353200,0.05804375,85970.0,85969.0,0.4786386]
[1742785354097,0.17436105,85970.0,85969.0,0.5917586]
[1742785357711,0.17436105,85970.0,85969.0,0.7008586]
[1742785358612,0.17436105,85970.0,85969.0,0.6447586]
[1742785359713,0.17436105,85970.0,85969.0,0.5316386]
[1742785365510,0.05804375,85970.0,85969.0,0.5316386]
[1742785365712,0.17436105,85970.0,85969.0,0.5880386]
[1742785368320,0.05804375,85970.0,85969.0,0.5880386]
[1742785368515,0.05744374,85970.0,85969.0,0.5880386]
[1742785368718,0.05888374,85970.0,85969.0,0.5880386]
[1742785369019,0.17520104,85970.0,85969.0,0.5880386]
[1742785369329,0.23210104,85970.0,85969.0,0.5880386]
[1742785369509,0.2413415,85970.0,85969.0,0.5880386]
[1742785370115,0.2413415,85970.0,85969.0,0.5316386]
[1742785370819,0.23210104,85970.0,85969.0,0.5316386]
[1742785371008,0.24155703,85970.0,85969.0,0.5316386]
[1742785372417,0.2416295,85970.0,85969.0,0.5316386]
[1742785374326,0.23210104,85970.0,85969.0,0.5316386]
[1742785374527,0.2416624,85970.0,85969.0,0.5316386]
[1742785375423,0.2995624,85970.0,85969.0,0.5316386]
[1742785377524,0.1832451,85970.0,85969.0,0.5316386]
[1742785377727,1e-07,85971.0,85970.0,0.1163173]
[1742785377923,1e-07,85971.0,85970.0,0.5354773]
[1742785377924,3e-08,85971.0,85970.0,0.5354773]
[1742785378124,3e-08,85971.0,85970.0,0.5905773]
[1742785378425,0.0023257,85972.0,85971.0,0.1163159]
[1742785378629,0.0023257,85972.0,85971.0,0.4882759]
[1742785378820,0.0023257,85972.0,85971.0,0.5986759]
[1742785379921,0.0023257,85972.0,85971.0,0.4986759]
[1742785381219,0.0023257,85972.0,85971.0,0.70675004]
[1742785385330,0.0023257,85972.0,85971.0,0.4986759]
[1742785385833,0.0023257,85972.0,85971.0,0.5986759]
[1742785394457,0.0045262,85976.0,85971.0,0.5986759]
[1742785394458,0.01114354,85994.0,85989.0,0.1162916]
[1742785394639,0.052,85993.0,85989.0,1.2109316]
[1742785394840,0.10648,85993.0,85989.0,1.2128116]
[1742785395337,0.10648,85993.0,85989.0,1.3239116]
[1742785395540,0.1064,85993.0,85989.0,1.3239116]
[1742785396345,8e-05,85991.0,85989.0,1.3239116]
[1742785396748,0.06468076,85990.0,85989.0,1.3239116]
[1742785397247,0.06468076,85990.0,85989.0,1.33549367]
[1742785402053,0.06468076,85990.0,85989.0,1.22245367]
[1742785402255,0.06468076,85990.0,85989.0,1.33545367]
[1742785403048,0.05448,85993.0,85991.0,0.1162889]
[1742785403355,0.05448,85993.0,85991.0,0.4782089]
[1742785403667,0.01379502,86002.0,85993.0,0.1162862]
[1742785403858,0.01379502,86002.0,85995.0,0.1162835]
[1742785404162,0.01379502,86002.0,85995.0,0.5282435]
[1742785404357,0.0155885,86004.0,85995.0,0.52006]
[1742785404559,0.0534,86001.0,86000.0,0.1162767]
[1742785404760,0.0534,86001.0,86000.0,1.1778567]
[1742785405349,0.0155885,86004.0,86003.0,0.1162726]
[1742785405562,0.0155885,86004.0,86003.0,0.3697902]
[1742785405756,0.01632328,86006.0,86005.0,0.1162699]
[1742785406064,0.01804695,86012.0,86007.0,0.1162672]
[1742785406259,0.01804695,86012.0,86011.0,0.1162618]
[1742785406460,0.01804695,86012.0,86011.0,0.8620218]
[1742785406664,0.01958362,86016.0,86015.0,0.1162564]
[1742785406857,0.01958362,86016.0,86015.0,0.2681364]
[1742785407864,0.02181648,86019.0,86017.0,0.1162537]
[1742785408074,0.07645757,86018.0,86017.0,0.6990137]
[1742785408559,0.07645757,86018.0,86017.0,0.7541137]
[1742785410253,0.07645757,86018.0,86017.0,0.6441137]
[1742785410457,0.13215757,86018.0,86017.0,0.6441137]
[1742785413266,0.13215757,86018.0,86017.0,1.0049137]
[1742785413559,0.07645757,86018.0,86017.0,1.0049137]
[1742785413963,0.07645757,86018.0,86017.0,1.1178737]
[1742785414162,0.13245757,86018.0,86017.0,1.1178737]
[1742785416372,0.02035757,86018.0,86017.0,1.1178737]
[1742785417067,0.07145757,86018.0,86017.0,1.1178737]
[1742785417269,0.12445757,86018.0,86017.0,1.1178737]
[1742785417763,0.12445757,86018.0,86017.0,1.2078737]
[1742785418568,0.07145757,86018.0,86017.0,1.2078737]
[1742785419273,0.07145757,86018.0,86017.0,1.2178737]
[1742785419466,0.03193985,86045.0,86022.0,0.116247]
[1742785419661,3e-08,86027.0,86026.0,0.4770416]
[1742785419861,3e-08,86027.0,86026.0,1.0100016]
[1742785420171,3e-08,86027.0,86026.0,1.0119616]
[1742785420370,3e-08,86027.0,86026.0,1.0100016]
[1742785420570,3e-08,86027.0,86026.0,1.1170016]
[1742785421175,3e-08,86027.0,86026.0,0.9370016]
[1742785422271,3e-08,86027.0,86026.0,1.0470016]
[1742785423272,0.03624503,86029.0,86028.0,0.1162388]
[1742785423568,0.0558,86030.0,86029.0,0.1162375]
[1742785423870,0.0558,86030.0,86029.0,0.7641375]
[1742785424367,0.0558,86030.0,86029.0,0.77589729]
[1742785425973,0.0558,86030.0,86029.0,0.77777729]
[1742785426164,0.0558,86030.0,86029.0,0.89073729]
[1742785427371,1e-08,86031.0,86030.0,0.1162361]
[1742785427572,1e-08,86031.0,86030.0,0.4948561]
[1742785427772,0.03179977,86049.0,86044.0,0.1162172]
[1742785428074,0.056,86046.0,86044.0,1.1726572]
[1742785429275,0.08823985,86045.0,86044.0,1.2270572]
[1742785429874,0.03193985,86045.0,86044.0,1.2270572]
[1742785431674,0.08768874,86047.0,86046.0,0.1162145]
[1742785431884,0.08768874,86047.0,86046.0,0.2280945]
[1742785432769,0.08768874,86047.0,86046.0,0.3410145]
[1742785437374,0.03138874,86047.0,86046.0,0.3410145]
[1742785437583,0.14118874,86047.0,86046.0,0.3410145]
[1742785439785,0.14118874,86047.0,86046.0,0.2280945]
[1742785439987,0.14118874,86047.0,86046.0,0.3410145]
[1742785441474,0.14118874,86047.0,86046.0,0.1180945]
[1742785441674,0.14118874,86047.0,86046.0,0.2310145]
[1742785442584,0.14118874,86047.0,86046.0,0.00188]
[1742785442884,0.25740194,86047.0,86046.0,0.00188]
[1742785443186,0.25740194,86047.0,86046.0,0.1180945]
[1742785445586,0.14118874,86047.0,86046.0,0.1180945]
[1742785445782,0.14118874,86047.0,86046.0,0.3410145]
[1742785445979,0.14118874,86047.0,86046.0,0.3934145]
[1742785447680,0.03138874,86047.0,86046.0,0.5136545]
[1742785448492,0.03138874,86047.0,86046.0,0.4036545]
[1742785448692,0.03138874,86047.0,86046.0,0.5036545]
[1742785448994,0.0004,86056.0,86054.0,0.1162037]
[1742785449188,0.0004,86056.0,86054.0,1.1118037]
[1742785449693,0.0004,86056.0,86054.0,1.1633037]
[1742785449890,0.0004,86056.0,86054.0,1.0180037]
[1742785450089,0.0004,86056.0,86054.0,1.1180037]
[1742785450303,0.15266811,86055.0,86054.0,1.0665037]
[1742785450590,0.31526811,86055.0,86054.0,0.5835837]
[1742785450795,0.31526811,86055.0,86054.0,0.48759664]
[1742785451691,0.31526811,86055.0,86054.0,0.59509664]
[1742785453295,0.31526811,86055.0,86054.0,0.47889294]
[1742785453491,0.31526811,86055.0,86054.0,0.36268]
[1742785453898,0.31526811,86055.0,86054.0,0.41054]
[1742785454196,0.46526811,86055.0,86051.0,0.27743219]
[1742785454383,0.46526811,86055.0,86051.0,0.27931219]
[1742785454384,0.1162064,86052.0,86051.0,0.27931219]
[1742785454699,0.22972641,86052.0,86051.0,0.00188]
[1742785454887,0.1162132,86047.0,86046.0,0.01024]
[1742785455088,0.2304532,86047.0,86046.0,0.1277745]
[1742785455294,0.2310932,86047.0,86046.0,0.01156]
[1742785455498,0.2297732,86047.0,86046.0,0.09291]
[1742785455696,0.3403732,86047.0,86046.0,0.09291]
[1742785456092,0.3403732,86047.0,86046.0,0.2091245]
[1742785457199,0.3403732,86047.0,86046.0,0.2381745]
[1742785457989,0.3403732,86047.0,86046.0,0.2908745]
[1742785458599,0.2274532,86047.0,86046.0,0.2946245]
[1742785459488,0.1168532,86047.0,86046.0,0.2946245]
[1742785459696,0.1168532,86047.0,86046.0,0.7114245]
[1742785459886,0.1162132,86047.0,86046.0,0.7114245]
[1742785460493,0.11761321,86047.0,86046.0,0.7114245]
[1742785463106,0.1162132,86047.0,86046.0,0.7638245]
[1742785464196,0.1673923,86048.0,86047.0,0.1162132]
[1742785464404,8e-05,86048.0,86047.0,0.2277132]
[1742785467400,8e-05,86048.0,86047.0,0.3377132]
[1742785468107,8e-05,86048.0,86047.0,0.3775732]
[1742785468301,8e-05,86048.0,86047.0,0.4175732]
[1742785468506,8e-05,86048.0,86047.0,0.4775732]
[1742785470506,8e-05,86048.0,86047.0,0.5904932]
[1742785471611,8e-05,86048.0,86047.0,0.3804932]
[1742785472909,8e-05,86048.0,86047.0,0.4095432]
[1742785474807,8e-05,86048.0,86047.0,1.1311432]
[1742785477312,8e-05,86048.0,86047.0,1.4111432]
[1742785477702,0.08646571,86055.0,86054.0,0.1162037]
[1742785477901,0.08778571,86055.0,86054.0,0.5783237]
[1742785478512,0.08778571,86055.0,86054.0,0.6808237]
[1742785479702,0.08778571,86055.0,86054.0,0.6910637]
[1742785482503,0.08778571,86055.0,86054.0,0.5910637]
[1742785482704,0.20398811,86055.0,86054.0,0.5910637]
[1742785482915,0.08778571,86055.0,86054.0,0.5910637]
[1742785483902,0.20398811,86055.0,86054.0,0.5910637]
[1742785484717,0.08778571,86055.0,86054.0,0.5910637]
[1742785485322,0.13888571,86055.0,86054.0,0.5910637]
[1742785485707,0.03778571,86055.0,86054.0,0.5910637]
[1742785485911,0.03646571,86055.0,86054.0,0.5910637]
[1742785486508,0.03778571,86055.0,86054.0,0.5910637]
[1742785487313,0.25528811,86055.0,86054.0,0.42376]
[1742785487519,0.25528811,86055.0,86054.0,0.5399637]
[1742785488016,0.25528811,86055.0,86054.0,0.47386]
[1742785488211,0.25528811,86055.0,86054.0,0.5900637]
[1742785489614,0.25528811,86055.0,86054.0,0.6714037]
[1742785491231,0.25528811,86055.0,86054.0,0.6751437]
[1742785492619,0.25528811,86055.0,86054.0,0.7041937]
[1742785493515,0.25528811,86055.0,86054.0,0.7440337]
[1742785504036,0.20418811,86055.0,86054.0,0.7440337]
[1742785506533,0.15398811,86055.0,86054.0,0.7440337]
[1742785506940,0.03778571,86055.0,86054.0,0.7440337]
[1742785507137,0.03646571,86055.0,86054.0,0.7440337]
[1742785507835,0.15398811,86055.0,86054.0,0.7440337]
[1742785508033,0.03778571,86055.0,86054.0,0.7440337]
[1742785508434,0.15398811,86055.0,86054.0,0.7440337]
[1742785508824,0.03778571,86055.0,86054.0,0.7440337]
[1742785509029,0.03778571,86055.0,86054.0,0.8569137]
[1742785509432,0.15398811,86055.0,86054.0,0.8569137]
[1742785510439,0.03778571,86055.0,86054.0,0.8569137]
[1742785512341,0.15398811,86055.0,86054.0,0.8569137]
[1742785513538,0.03778571,86055.0,86054.0,0.8569137]
[1742785514041,0.15398811,86055.0,86054.0,0.8569137]
[1742785516534,0.20738811,86055.0,86054.0,0.8569137]
[1742785517836,0.09118571,86055.0,86054.0,0.8569137]
[1742785518643,0.14018571,86055.0,86054.0,0.8569137]
[1742785519547,0.09118571,86055.0,86054.0,0.8569137]
[1742785519841,0.20738811,86055.0,86054.0,0.8569137]
[1742785520041,0.09118571,86055.0,86054.0,0.8569137]
[1742785520242,0.03778571,86055.0,86054.0,0.8569137]
[1742785520736,0.15398811,86055.0,86054.0,0.8569137]
[1742785520928,0.15398811,86055.0,86054.0,1.2177137]
[1742785522235,0.03881606,86067.0,86055.0,0.0581012]
[1742785522434,0.09690916,86067.0,86060.0,0.1161956]
[1742785522746,0.03881606,86067.0,86060.0,0.3279156]
[1742785523339,0.03649709,86063.0,86062.0,0.1161929]
[1742785523539,0.03881606,86067.0,86064.0,0.1161902]
[1742785523735,0.03881606,86067.0,86064.0,0.4507902]
[1742785523949,0.03889606,86067.0,86064.0,0.4507902]
[1742785524147,0.03889606,86067.0,86064.0,0.5500902]
[1742785525138,0.0401065,86071.0,86064.0,0.5500902]
[1742785525139,0.0401065,86071.0,86064.0,0.43763]
[1742785525339,0.02316002,86085.0,86070.0,0.3608]
[1742785525547,0.04836983,86095.0,86092.0,0.1161524]
[1742785525548,6e-08,86093.0,86092.0,0.1161524]
[1742785525738,6e-08,86093.0,86092.0,0.9215524]
[1742785525944,0.05117481,86103.0,86092.0,0.9554]
[1742785526248,0.40277221,86109.0,86103.0,0.1161376]
[1742785526438,0.40277221,86109.0,86104.0,0.5898162]
[1742785526639,0.40277221,86109.0,86104.0,0.9405662]
[1742785526846,0.40277221,86109.0,86106.0,0.1161336]
[1742785527038,0.40277221,86109.0,86106.0,0.4378536]
[1742785527436,0.40277221,86109.0,86106.0,0.44959996]
[1742785528247,0.40277221,86109.0,86106.0,0.56247996]
[1742785528448,0.40277221,86109.0,86106.0,0.56243996]
[1742785528644,0.40277221,86109.0,86106.0,0.44959996]
[1742785528949,0.40277221,86109.0,86106.0,0.66463996]
[1742785529150,0.04685349,86111.0,86109.0,0.1161295]
[1742785529356,0.06530749,86134.0,86131.0,0.1160998]
[1742785529547,0.0723846,86146.0,86131.0,0.79536]
[1742785529748,1e-08,86142.0,86141.0,0.4768864]
[1742785529940,0.0723846,86146.0,86141.0,0.6126]
[1742785530146,0.0534,86145.0,86143.0,0.3608]
[1742785530349,0.0534,86145.0,86143.0,0.36252]
[1742785530350,0.22053053,86145.0,86143.0,0.36252]
[1742785530648,0.33661193,86145.0,86143.0,0.36252]
[1742785530838,0.1160823,86144.0,86143.0,0.36252]
[1742785531035,0.2289223,86144.0,86143.0,0.28202]
[1742785531242,0.2289223,86144.0,86130.0,0.3608]
[1742785531243,0.0580432,86141.0,86131.0,0.0536]
[1742785531442,0.0580464,86137.0,86131.0,0.0548]
[1742785531638,0.11284,86136.0,86131.0,0.0548]
[1742785531853,0.11404001,86136.0,86131.0,0.0548]
[1742785532555,0.23013311,86136.0,86131.0,0.0548]
[1742785532751,0.3608,86135.0,86131.0,0.0012]
[1742785532952,0.07298379,86148.0,86145.0,0.116081]
[1742785533151,0.07306219,86154.0,86153.0,0.1160702]
[1742785533342,0.07306219,86154.0,86153.0,0.4781102]
[1742785533343,0.0742622,86154.0,86153.0,0.4781102]
[1742785533953,0.07496284,86156.0,86155.0,0.1160675]
[1742785534257,0.3608,86189.0,86155.0,0.50986]
[1742785534445,0.3608,86198.0,86197.0,0.1160109]
[1742785534748,0.1160142,86195.0,86187.0,0.0580121]
[1742785534950,0.3608,86190.0,86187.0,0.00164]
[1742785535149,0.3608,86190.0,86171.0,0.0495]
[1742785535150,0.4188106,86190.0,86189.0,0.00017402]
[1742785535350,0.1160325,86181.0,86180.0,0.0493]
[1742785535559,0.2288325,86181.0,86180.0,0.0493]
[1742785535940,0.1040516,86168.0,86167.0,0.1160503]
[1742785536141,0.1040516,86168.0,86165.0,0.0580268]
[1742785536142,0.1160527,86166.0,86165.0,0.00164]
[1742785536345,0.1160527,86166.0,86165.0,0.0432]
[1742785536541,0.4768527,86166.0,86165.0,0.04156]
[1742785536745,0.4768527,86166.0,86165.0,0.04]
[1742785536964,0.1160608,86161.0,86160.0,0.1160605]
[1742785537172,0.1160562,86164.0,86163.0,0.1740823]
[1742785537369,0.2288562,86164.0,86163.0,0.1756423]
[1742785537769,0.2288562,86164.0,86163.0,0.0595883]
[1742785538372,0.1160562,86164.0,86163.0,0.0595883]
[1742785538561,0.2288562,86164.0,86163.0,0.0595883]
[1742785539264,0.2288562,86164.0,86163.0,0.00156]
[1742785539772,0.1160594,86161.0,86160.0,0.16856]
[1742785540070,0.1160594,86161.0,86160.0,0.17016]
[1742785540264,0.1160608,86160.0,86157.0,0.00017402]
[1742785540465,0.116081,86148.0,86147.0,0.2272134]
[1742785540766,0.1160796,86146.0,86145.0,0.0498]
[1742785540967,0.11667961,86146.0,86145.0,0.05088]
[1742785541157,0.11667961,86146.0,86145.0,0.168041]
[1742785541361,0.11667961,86146.0,86145.0,0.220061]
[1742785541970,0.0580378,86149.0,86145.0,0.220061]
[1742785542273,0.1160796,86146.0,86145.0,0.3361393]
[1742785542572,0.1173996,86146.0,86145.0,0.3361393]
[1742785543173,0.11288,86155.0,86153.0,0.1160702]
[1742785543368,0.0580305,86160.0,86153.0,0.1177102]
[1742785543575,8e-05,86157.0,86153.0,0.1177102]
[1742785543774,0.1160679,86155.0,86153.0,0.1177102]
[1742785543974,0.1160679,86155.0,86153.0,0.5763102]
[1742785544163,0.11624292,86154.0,86153.0,0.5763102]
[1742785544669,0.00017412,86154.0,86153.0,0.5763102]
[1742785545068,0.0580311,86159.0,86156.0,0.0580325]
[1742785545271,0.3612,86184.0,86157.0,0.0978]
[1742785545476,0.0776151,86183.0,86182.0,0.1160311]
[1742785545669,0.0196,86183.0,86182.0,0.1160311]
[1742785546371,0.0686,86183.0,86182.0,0.1176711]
[1742785546866,0.0686,86183.0,86182.0,0.4784711]
[1742785547277,0.0686,86183.0,86182.0,0.1176711]
[1742785547468,0.0686,86183.0,86182.0,0.4784711]
[1742785548366,0.0686,86183.0,86182.0,0.1176711]
[1742785548969,0.0196,86183.0,86182.0,0.4784711]
[1742785549670,0.0704,86183.0,86182.0,0.4784711]
[1742785554869,0.0004,86184.0,86183.0,0.1160298]
[1742785555076,0.0004,86184.0,86183.0,0.1688498]
[1742785556078,0.0004,86184.0,86183.0,0.2172498]
[1742785556271,0.0004,86184.0,86183.0,0.3310898]
[1742785556475,0.0004,86184.0,86183.0,0.4410898]
[1742785557076,0.0001727,86191.0,86190.0,0.1160204]
[1742785557275,0.0001727,86191.0,86190.0,0.4784604]
[1742785558087,0.0001727,86191.0,86190.0,0.5791604]
[1742785558983,0.0001727,86191.0,86190.0,0.5791604]